fUSD/lending_fUSD_20250312
["ID","MTS","AMOUNT","RATE_DAILY","PERIOD"]
[355967146,1741738231623,-150.0,8.956e-05,2]
[355967147,1741738231633,-588.28295851,8.956e-05,2]
[355967148,1741738231644,-411.71704149,8.956e-05,2]
[355967149,1741738231653,-302.49502964,9.471e-05,2]
[355967150,1741738231664,-1059.34757036,9.471e-05,2]
[355967151,1741738231673,-103.37536289,9.562e-05,7]
[355967152,1741738231701,-46.62463711,9.562e-05,7]
[355967153,1741738231710,-150.0,9.568e-05,2]
[355967154,1741738231720,-113.1351302,9.569e-05,2]
[355967155,1741738231732,-386.8648698,9.569e-05,2]
[355967156,1741738231742,-500.0,9.569e-05,2]
[355967157,1741738231752,-500.0,9.569e-05,2]
[355967158,1741738231762,-500.0,9.569e-05,2]
[355967159,1741738231772,-500.0,9.569e-05,2]
[355967160,1741738231782,-500.0,9.569e-05,2]
[355967161,1741738231792,-690.04,9.569e-05,2]
[355967162,1741738231802,-237.38376776,9.569e-05,2]
[355967163,1741738231811,-229.62339955,9.569e-05,2]
[355967164,1741738231826,-270.37660045,9.569e-05,2]
[355967165,1741738231835,-500.0,9.569e-05,2]
[355967166,1741738231844,-129.62339955,9.569e-05,2]
[355967167,1741738231856,-276.0,9.569e-05,2]
[355967199,1741738237395,-96.65660045,9.569e-05,2]
[355967200,1741738237405,-500.0,9.569e-05,2]
[355967201,1741738237414,-500.0,9.569e-05,2]
[355967202,1741738237422,-500.0,9.569e-05,2]
[355967203,1741738237431,-500.0,9.569e-05,2]
[355967204,1741738237440,-500.0,9.569e-05,2]
[355967205,1741738237451,-500.0,9.569e-05,2]
[355967206,1741738237460,-500.0,9.569e-05,2]
[355967207,1741738237470,-500.0,9.569e-05,2]
[355967208,1741738237479,-500.0,9.569e-05,2]
[355967209,1741738237489,-500.0,9.569e-05,2]
[355967210,1741738237498,-462.68539342,9.569e-05,2]
[355967233,1741738239572,-37.31460658,9.569e-05,2]
[355967235,1741738239581,-252.38539345,9.569e-05,2]
[355967242,1741738239634,-247.61460655,9.569e-05,2]
[355967244,1741738239644,-511.37,9.569e-05,2]
[355967246,1741738239652,-500.0,9.569e-05,2]
[355967248,1741738239662,-518.28,9.569e-05,2]
[355967250,1741738239672,-500.0,9.569e-05,2]
[355967251,1741738239681,-500.0,9.569e-05,2]
[355967252,1741738239691,-684.03,9.569e-05,2]
[355967253,1741738239700,-317.08542285,9.569e-05,2]
[355967254,1741738239711,-182.91457715,9.569e-05,2]
[355967255,1741738239720,-130.01165417,9.569e-05,2]
[355967256,1741738239791,-369.98834583,9.569e-05,2]
[355967257,1741738239801,-500.0,9.569e-05,2]
[355967258,1741738239810,-500.0,9.569e-05,2]
[355967259,1741738239820,-681.96,9.569e-05,2]
[355967260,1741738239830,-229.80605417,9.569e-05,2]
[355967261,1741738239841,-270.19394583,9.569e-05,2]
[355967262,1741738239851,-687.47,9.569e-05,2]
[355967263,1741738239860,-760.31,9.569e-05,2]
[355967264,1741738239878,-431.55364045,9.569e-05,2]
[355967265,1741738239897,-68.44635955,9.569e-05,2]
[355967266,1741738239906,-500.0,9.569e-05,2]
[355967267,1741738239916,-921.48,9.569e-05,2]
[355967268,1741738239925,-147.60083795,9.569e-05,2]
[355967303,1741738242558,-484.37916205,9.569e-05,2]
[355967305,1741738242568,-500.0,9.569e-05,2]
[355967307,1741738242579,-500.0,9.569e-05,2]
[355967309,1741738242589,-642.3,9.569e-05,2]
[355967311,1741738242600,-511.6,9.569e-05,2]
[355967313,1741738242609,-640.48,9.569e-05,2]
[355967315,1741738242618,-604.01,9.569e-05,2]
[355967316,1741738242627,-500.0,9.569e-05,2]
[355967318,1741738242636,-544.7,9.569e-05,2]
[355967320,1741738242645,-194.4936272,9.569e-05,2]
[355967322,1741738242654,-500.0,9.569e-05,2]
[355967324,1741738242663,-827.77,9.569e-05,2]
[355967326,1741738242672,-685.02,9.569e-05,2]
[355967328,1741738242682,-532.91,9.569e-05,2]
[355967330,1741738242691,-500.0,9.569e-05,2]
[355967331,1741738242700,-817.61,9.569e-05,2]
[355967332,1741738242710,-642.08,9.569e-05,2]
[355967333,1741738242721,-564.24612574,9.569e-05,2]
[355967334,1741738242731,-500.0,9.569e-05,2]
[355967335,1741738242740,-754.64,9.569e-05,2]
[355967336,1741738242749,-500.0,9.569e-05,2]
[355967337,1741738242758,-500.0,9.569e-05,2]
[355967338,1741738242767,-500.0,9.569e-05,2]
[355967339,1741738242777,-500.0,9.569e-05,2]
[355967340,1741738242787,-500.0,9.569e-05,2]
[355967341,1741738242797,-500.0,9.569e-05,2]
[355967342,1741738242807,-500.0,9.569e-05,2]
[355967343,1741738242816,-500.0,9.569e-05,2]
[355967344,1741738242826,-500.0,9.569e-05,2]
[355967345,1741738242835,-500.0,9.569e-05,2]
[355967346,1741738242844,-743.99,9.569e-05,2]
[355967347,1741738242854,-500.0,9.569e-05,2]
[355967348,1741738242864,-510.2,9.569e-05,2]
[355967349,1741738242873,-500.0,9.569e-05,2]
[355967350,1741738242882,-500.0,9.569e-05,2]
[355967351,1741738242891,-500.0,9.569e-05,2]
[355967352,1741738242901,-500.0,9.569e-05,2]
[355967353,1741738242910,-592.63,9.569e-05,2]
[355967354,1741738242921,-500.0,9.569e-05,2]
[355967355,1741738242936,-500.0,9.569e-05,2]
[355967356,1741738242947,-665.73,9.569e-05,2]
[355967357,1741738242958,-500.0,9.569e-05,2]
[355967358,1741738242968,-500.0,9.569e-05,2]
[355967359,1741738242977,-500.0,9.569e-05,2]
[355967360,1741738242986,-500.0,9.569e-05,2]
[355967361,1741738242996,-500.0,9.569e-05,2]
[355967362,1741738243007,-500.0,9.569e-05,2]
[355967363,1741738243024,-500.0,9.569e-05,2]
[355967364,1741738243043,-500.0,9.569e-05,2]
[355967365,1741738243052,-500.0,9.569e-05,2]
[355967366,1741738243062,-500.0,9.569e-05,2]
[355967367,1741738243071,-500.0,9.569e-05,2]
[355967368,1741738243080,-500.0,9.569e-05,2]
[355967369,1741738243090,-500.0,9.569e-05,2]
[355967370,1741738243099,-500.0,9.569e-05,2]
[355967371,1741738243108,-667.13,9.569e-05,2]
[355967372,1741738243117,-428.1429322,9.569e-05,2]
[355967374,1741738243126,-661.78,9.569e-05,2]
[355967376,1741738243136,-500.0,9.569e-05,2]
[355967378,1741738243145,-719.98,9.569e-05,2]
[355967379,1741738243154,-500.0,9.569e-05,2]
[355967380,1741738243163,-500.0,9.569e-05,2]
[355967381,1741738243174,-500.0,9.569e-05,2]
[355967382,1741738243183,-500.0,9.569e-05,2]
[355967383,1741738243192,-500.0,9.569e-05,2]
[355967384,1741738243201,-500.0,9.569e-05,2]
[355967385,1741738243211,-500.0,9.569e-05,2]
[355967386,1741738243220,-500.0,9.569e-05,2]
[355967387,1741738243230,-500.0,9.569e-05,2]
[355967388,1741738243239,-500.0,9.569e-05,2]
[355967389,1741738243249,-500.0,9.569e-05,2]
[355967390,1741738243258,-500.0,9.569e-05,2]
[355967391,1741738243268,-500.0,9.569e-05,2]
[355967392,1741738243278,-500.0,9.569e-05,2]
[355967393,1741738243287,-500.0,9.569e-05,2]
[355967394,1741738243296,-500.0,9.569e-05,2]
[355967395,1741738243306,-500.0,9.569e-05,2]
[355967396,1741738243314,-580.9,9.569e-05,2]
[355967397,1741738243324,-500.0,9.569e-05,2]
[355967398,1741738243333,-500.0,9.569e-05,2]
[355967399,1741738243344,-500.0,9.569e-05,2]
[355967400,1741738243353,-500.0,9.569e-05,2]
[355967401,1741738243362,-834.56,9.569e-05,2]
[355967402,1741738243371,-500.0,9.569e-05,2]
[355967403,1741738243381,-500.0,9.569e-05,2]
[355967404,1741738243391,-850.77,9.569e-05,2]
[355967405,1741738243401,-500.0,9.569e-05,2]
[355967406,1741738243410,-435.70082531,9.569e-05,2]
[355967407,1741738243419,-508.72,9.569e-05,2]
[355967408,1741738243429,-500.0,9.569e-05,2]
[355967409,1741738243438,-500.0,9.569e-05,2]
[355967410,1741738243447,-844.26,9.569e-05,2]
[355967411,1741738243456,-502.11,9.569e-05,2]
[355967412,1741738243465,-500.0,9.569e-05,2]
[355967413,1741738243475,-1157.78,9.569e-05,2]
[355967414,1741738243483,-500.0,9.569e-05,2]
[355967415,1741738243492,-500.0,9.569e-05,2]
[355967416,1741738243502,-643.56,9.569e-05,2]
[355967417,1741738243511,-675.08,9.569e-05,2]
[355967418,1741738243520,-500.0,9.569e-05,2]
[355967419,1741738243530,-500.0,9.569e-05,2]
[355967420,1741738243540,-500.0,9.569e-05,2]
[355967421,1741738243551,-500.0,9.569e-05,2]
[355967422,1741738243561,-725.78,9.569e-05,2]
[355967423,1741738243570,-871.34,9.569e-05,2]
[355967424,1741738243582,-500.0,9.569e-05,2]
[355967425,1741738243591,-594.04,9.569e-05,2]
[355967426,1741738243600,-733.69,9.569e-05,2]
[355967427,1741738243610,-500.0,9.569e-05,2]
[355967428,1741738243620,-500.0,9.569e-05,2]
[355967429,1741738243629,-808.23,9.569e-05,2]
[355967430,1741738243639,-500.0,9.569e-05,2]
[355967431,1741738243648,-500.0,9.569e-05,2]
[355967432,1741738243658,-602.6,9.569e-05,2]
[355967433,1741738243667,-500.0,9.569e-05,2]
[355967434,1741738243676,-500.0,9.569e-05,2]
[355967435,1741738243686,-500.0,9.569e-05,2]
[355967436,1741738243696,-811.32,9.569e-05,2]
[355967437,1741738243706,-500.0,9.569e-05,2]
[355967438,1741738243715,-500.0,9.569e-05,2]
[355967439,1741738243725,-707.33,9.569e-05,2]
[355967440,1741738243737,-500.0,9.569e-05,2]
[355967441,1741738243746,-613.52,9.569e-05,2]
[355967442,1741738243755,-500.0,9.569e-05,2]
[355967443,1741738243765,-500.0,9.569e-05,2]
[355967444,1741738243774,-933.5,9.569e-05,2]
[355967445,1741738243784,-500.0,9.569e-05,2]
[355967446,1741738243793,-500.0,9.569e-05,2]
[355967447,1741738243802,-618.06,9.569e-05,2]
[355967448,1741738243811,-500.0,9.569e-05,2]
[355967449,1741738243820,-590.04986616,9.57e-05,2]
[355967450,1741738243832,-1040.77,9.57e-05,2]
[355967451,1741738243842,-664.37,9.58e-05,2]
[355967452,1741738243851,-639.0,9.656e-05,2]
[355967453,1741738243861,-534.299,9.656e-05,2]
[355967454,1741738243870,-786.0,9.656e-05,2]
[355967455,1741738243879,-1428.0,9.656e-05,2]
[355967456,1741738243888,-541.0,9.656e-05,2]
[355967457,1741738243897,-907.0,9.656e-05,2]
[355967458,1741738243906,-1270.0,9.656e-05,2]
[355967459,1741738243916,-4021.098,9.656e-05,2]
[355967460,1741738243926,-150.0,9.656e-05,2]
[355967461,1741738243935,-2359.515,9.656e-05,2]
[355967462,1741738243944,-876.3,9.656e-05,2]
[355967463,1741738243955,-441.8,9.66e-05,2]
[355967464,1741738243966,-778.74,9.66e-05,2]
[355967465,1741738243975,-778.74,9.66e-05,2]
[355967466,1741738243984,-441.8,9.66e-05,2]
[355967467,1741738243995,-150.0,9.735e-05,2]
[355967468,1741738244005,-5000.0,9.742e-05,2]
[355967469,1741738244014,-2311.3176,9.743e-05,2]
[355967470,1741738244024,-1295.2338,9.743e-05,2]
[355967471,1741738244034,-3874.5202,9.743e-05,2]
[355967472,1741738244044,-1000.0,9.744e-05,2]
[355967473,1741738244053,-248.62,9.75e-05,2]
[355967474,1741738244063,-778.74,9.75e-05,2]
[355967475,1741738244072,-2003.939,9.762e-05,2]
[355967476,1741738244083,-181.777,9.762e-05,2]
[355967477,1741738244093,-150.0,9.77e-05,2]
[355967478,1741738244102,-41.02186732,9.824e-05,2]
[355967479,1741738244111,-923.69,9.841e-05,2]
[355967480,1741738244120,-522.76,9.841e-05,2]
[355967481,1741738244129,-1004.21,9.841e-05,2]
[355967482,1741738244139,-500.0,9.841e-05,2]
[355967483,1741738244148,-572.46,9.841e-05,2]
[355967484,1741738244157,-500.0,9.841e-05,2]
[355967485,1741738244167,-1224.29,9.841e-05,2]
[355967486,1741738244176,-584.84439592,9.841e-05,2]
[355967487,1741738244624,-149.55560408,9.841e-05,2]
[355967488,1741738244635,-1141.87,9.841e-05,2]
[355967489,1741738244645,-136.92202592,9.841e-05,2]
[355967490,1741738244658,-363.07797408,9.841e-05,2]
[355967491,1741738244667,-500.0,9.841e-05,2]
[355967492,1741738244677,-632.96,9.841e-05,2]
[355967493,1741738244687,-500.0,9.841e-05,2]
[355967494,1741738244697,-500.0,9.841e-05,2]
[355967495,1741738244706,-500.0,9.841e-05,2]
[355967496,1741738244716,-500.0,9.841e-05,2]
[355967497,1741738244726,-500.0,9.841e-05,2]
[355967498,1741738244735,-108.16923662,9.841e-05,2]
[355967499,1741738244770,-391.83076338,9.841e-05,2]
[355967500,1741738244780,-688.76923662,9.841e-05,2]
[355967501,1741738244897,-48.97076338,9.841e-05,2]
[355967502,1741738244907,-500.0,9.841e-05,2]
[355967503,1741738244916,-269.56070066,9.842e-05,2]
[355967504,1741738245533,-230.43929934,9.842e-05,2]
[355967505,1741738245815,-500.0,9.842e-05,2]
[355967506,1741738245825,-720.93,9.842e-05,2]
[355967507,1741738245840,-500.0,9.842e-05,2]
[355967508,1741738245850,-500.0,9.842e-05,2]
[355967509,1741738245859,-614.69,9.842e-05,2]
[355967510,1741738245868,-500.0,9.842e-05,2]
[355967511,1741738245878,-798.64,9.842e-05,2]
[355967512,1741738245888,-500.0,9.842e-05,2]
[355967513,1741738245898,-500.0,9.842e-05,2]
[355967514,1741738245907,-500.0,9.842e-05,2]
[355967515,1741738245919,-500.0,9.842e-05,2]
[355967516,1741738245940,-537.76,9.842e-05,2]
[355967517,1741738245962,-500.0,9.842e-05,2]
[355967518,1741738245983,-500.0,9.842e-05,2]
[355967520,1741738245996,-500.0,9.842e-05,2]
[355967521,1741738246006,-500.0,9.842e-05,2]
[355967522,1741738246016,-678.98,9.842e-05,2]
[355967523,1741738246027,-612.27,9.842e-05,2]
[355967524,1741738246037,-500.0,9.842e-05,2]
[355967525,1741738246047,-764.34,9.842e-05,2]
[355967526,1741738246056,-253.86798495,9.842e-05,2]
[355967527,1741738246066,-500.0,9.842e-05,2]
[355967528,1741738246075,-500.0,9.842e-05,2]
[355967529,1741738246087,-500.0,9.842e-05,2]
[355967530,1741738246096,-500.0,9.842e-05,2]
[355967531,1741738246105,-782.02,9.842e-05,2]
[355967532,1741738246115,-500.0,9.842e-05,2]
[355967533,1741738246125,-708.67,9.842e-05,2]
[355967534,1741738246134,-500.0,9.842e-05,2]
[355967535,1741738246143,-500.0,9.842e-05,2]
[355967536,1741738246153,-362.80007049,9.842e-05,2]
[355967537,1741738246165,-137.19992951,9.842e-05,2]
[355967538,1741738246177,-500.0,9.842e-05,2]
[355967539,1741738246194,-500.0,9.842e-05,2]
[355967540,1741738246205,-661.42,9.842e-05,2]
[355967541,1741738246215,-500.0,9.842e-05,2]
[355967542,1741738246225,-500.0,9.842e-05,2]
[355967543,1741738246235,-500.0,9.842e-05,2]
[355967544,1741738246244,-500.0,9.842e-05,2]
[355967545,1741738246253,-500.0,9.842e-05,2]
[355967546,1741738246263,-500.0,9.842e-05,2]
[355967547,1741738246272,-500.0,9.842e-05,2]
[355967548,1741738246281,-500.0,9.842e-05,2]
[355967549,1741738246291,-500.0,9.842e-05,2]
[355967550,1741738246301,-500.0,9.842e-05,2]
[355967551,1741738246311,-500.0,9.842e-05,2]
[355967552,1741738246321,-500.0,9.842e-05,2]
[355967553,1741738246331,-637.7,9.842e-05,2]
[355967554,1741738246341,-500.0,9.842e-05,2]
[355967555,1741738246351,-500.0,9.842e-05,2]
[355967556,1741738246360,-500.0,9.842e-05,2]
[355967557,1741738246370,-500.0,9.842e-05,2]
[355967558,1741738246380,-527.21,9.842e-05,2]
[355967559,1741738246389,-938.89,9.842e-05,2]
[355967560,1741738246398,-717.87,9.842e-05,2]
[355967561,1741738246407,-500.0,9.842e-05,2]
[355967562,1741738246416,-500.0,9.842e-05,2]
[355967563,1741738246426,-648.39828132,9.842e-05,2]
[355967564,1741738246435,-500.0,9.842e-05,2]
[355967565,1741738246445,-863.29,9.842e-05,2]
[355967566,1741738246455,-500.0,9.842e-05,2]
[355967567,1741738246464,-813.42,9.842e-05,2]
[355967568,1741738246473,-500.0,9.842e-05,2]
[355967569,1741738246482,-500.0,9.842e-05,2]
[355967570,1741738246491,-752.16,9.842e-05,2]
[355967571,1741738246500,-500.0,9.842e-05,2]
[355967572,1741738246509,-500.0,9.842e-05,2]
[355967573,1741738246519,-500.0,9.842e-05,2]
[355967574,1741738246528,-500.0,9.842e-05,2]
[355967575,1741738246537,-500.0,9.842e-05,2]
[355967576,1741738246547,-500.0,9.842e-05,2]
[355967577,1741738246556,-500.0,9.842e-05,2]
[355967578,1741738246565,-668.72,9.842e-05,2]
[355967579,1741738246574,-866.21,9.842e-05,2]
[355967580,1741738246585,-500.0,9.842e-05,2]
[355967581,1741738246595,-500.0,9.842e-05,2]
[355967582,1741738246605,-500.0,9.842e-05,2]
[355967583,1741738246614,-500.0,9.842e-05,2]
[355967584,1741738246623,-386.57346329,9.842e-05,2]
[355967585,1741738246633,-500.0,9.842e-05,2]
[355967586,1741738246642,-500.0,9.842e-05,2]
[355967587,1741738246651,-500.0,9.842e-05,2]
[355967588,1741738246661,-500.0,9.842e-05,2]
[355967589,1741738246670,-500.0,9.842e-05,2]
[355967590,1741738246679,-550.54,9.842e-05,2]
[355967591,1741738246689,-739.24,9.842e-05,2]
[355967592,1741738246698,-500.0,9.842e-05,2]
[355967593,1741738246707,-500.0,9.842e-05,2]
[355967594,1741738246716,-500.0,9.842e-05,2]
[355967595,1741738246726,-500.0,9.842e-05,2]
[355967596,1741738246735,-500.0,9.842e-05,2]
[355967597,1741738246744,-500.0,9.842e-05,2]
[355967598,1741738246755,-699.57,9.842e-05,2]
[355967599,1741738246765,-500.0,9.842e-05,2]
[355967600,1741738246792,-500.0,9.842e-05,2]
[355967601,1741738246801,-500.0,9.842e-05,2]
[355967602,1741738246811,-500.0,9.842e-05,2]
[355967603,1741738246820,-500.0,9.842e-05,2]
[355967604,1741738246830,-500.0,9.842e-05,2]
[355967605,1741738246840,-500.0,9.842e-05,2]
[355967606,1741738246849,-500.0,9.842e-05,2]
[355967607,1741738246859,-792.42,9.842e-05,2]
[355967608,1741738246868,-711.68,9.842e-05,2]
[355967609,1741738246878,-700.01,9.842e-05,2]
[355967610,1741738246887,-500.0,9.842e-05,2]
[355967611,1741738246897,-524.05783096,9.842e-05,2]
[355967612,1741738246906,-500.0,9.842e-05,2]
[355967613,1741738246916,-500.0,9.842e-05,2]
[355967614,1741738246926,-500.0,9.842e-05,2]
[355967615,1741738246935,-500.0,9.842e-05,2]
[355967616,1741738246944,-500.0,9.842e-05,2]
[355967617,1741738246954,-500.0,9.842e-05,2]
[355967618,1741738246967,-526.98,9.842e-05,2]
[355967619,1741738246977,-878.76,9.842e-05,2]
[355967620,1741738247006,-500.0,9.842e-05,2]
[355967621,1741738247015,-500.0,9.842e-05,2]
[355967622,1741738247025,-500.0,9.842e-05,2]
[355967623,1741738247037,-600.42,9.842e-05,2]
[355967624,1741738247047,-500.0,9.842e-05,2]
[355967625,1741738247057,-500.0,9.842e-05,2]
[355967626,1741738247067,-500.0,9.842e-05,2]
[355967627,1741738247078,-506.89,9.842e-05,2]
[355967628,1741738247088,-624.2,9.842e-05,2]
[355967629,1741738247097,-541.42,9.842e-05,2]
[355967630,1741738247107,-500.0,9.842e-05,2]
[355967631,1741738247122,-500.0,9.842e-05,2]
[355967632,1741738247132,-500.0,9.842e-05,2]
[355967633,1741738247142,-500.0,9.842e-05,2]
[355967634,1741738247152,-500.0,9.842e-05,2]
[355967635,1741738247162,-757.14,9.842e-05,2]
[355967636,1741738247172,-690.86,9.842e-05,2]
[355967637,1741738247183,-630.43,9.842e-05,2]
[355967638,1741738247192,-765.51,9.842e-05,2]
[355967639,1741738247202,-500.0,9.842e-05,2]
[355967640,1741738247212,-628.27,9.842e-05,2]
[355967641,1741738247221,-500.0,9.842e-05,2]
[355967642,1741738247231,-721.43,9.842e-05,2]
[355967643,1741738247241,-500.0,9.842e-05,2]
[355967644,1741738247250,-500.0,9.842e-05,2]
[355967645,1741738247260,-500.0,9.842e-05,2]
[355967646,1741738247269,-875.72,9.842e-05,2]
[355967647,1741738247279,-500.0,9.842e-05,2]
[355967648,1741738247289,-500.0,9.842e-05,2]
[355967649,1741738247298,-500.0,9.842e-05,2]
[355967650,1741738247307,-500.0,9.842e-05,2]
[355967651,1741738247317,-683.14,9.842e-05,2]
[355967652,1741738247327,-500.0,9.842e-05,2]
[355967653,1741738247336,-500.0,9.842e-05,2]
[355967654,1741738247346,-584.93073584,9.842e-05,2]
[355967655,1741738247356,-1000.0,9.842e-05,2]
[355967656,1741738247365,-500.0,9.842e-05,2]
[355967657,1741738247375,-500.0,9.842e-05,2]
[355967658,1741738247385,-500.0,9.842e-05,2]
[355967659,1741738247394,-675.14,9.842e-05,2]
[355967660,1741738247404,-500.0,9.842e-05,2]
[355967661,1741738247413,-500.0,9.842e-05,2]
[355967662,1741738247424,-622.94,9.842e-05,2]
[355967663,1741738247434,-1231.41,9.842e-05,2]
[355967664,1741738247443,-500.0,9.842e-05,2]
[355967665,1741738247454,-599.93,9.842e-05,2]
[355967666,1741738247463,-500.0,9.842e-05,2]
[355967667,1741738247474,-567.67,9.842e-05,2]
[355967668,1741738247483,-605.8,9.842e-05,2]
[355967669,1741738247492,-500.0,9.842e-05,2]
[355967670,1741738247502,-500.0,9.842e-05,2]
[355967671,1741738247512,-507.55,9.842e-05,2]
[355967672,1741738247522,-500.0,9.842e-05,2]
[355967673,1741738247532,-533.00892441,9.842e-05,2]
[355967674,1741738247542,-800.54,9.842e-05,2]
[355967675,1741738247551,-500.0,9.842e-05,2]
[355967676,1741738247561,-500.0,9.842e-05,2]
[355967677,1741738247571,-500.0,9.842e-05,2]
[355967678,1741738247581,-500.0,9.842e-05,2]
[355967679,1741738247591,-500.0,9.842e-05,2]
[355967680,1741738247601,-500.0,9.842e-05,2]
[355967681,1741738247610,-500.0,9.842e-05,2]
[355967682,1741738247619,-500.0,9.842e-05,2]
[355967683,1741738247629,-538.73526174,9.842e-05,2]
[355967684,1741738247638,-702.89,9.842e-05,2]
[355967685,1741738247648,-500.0,9.842e-05,2]
[355967686,1741738247658,-579.96,9.842e-05,2]
[355967687,1741738247668,-570.9,9.842e-05,2]
[355967688,1741738247677,-500.0,9.842e-05,2]
[355967689,1741738247686,-690.73,9.842e-05,2]
[355967690,1741738247697,-500.0,9.842e-05,2]
[355967691,1741738247707,-500.0,9.842e-05,2]
[355967692,1741738247717,-601.64,9.842e-05,2]
[355967693,1741738247727,-500.0,9.842e-05,2]
[355967694,1741738247739,-500.0,9.842e-05,2]
[355967695,1741738247748,-500.0,9.842e-05,2]
[355967696,1741738247758,-784.29,9.842e-05,2]
[355967697,1741738247767,-678.85,9.842e-05,2]
[355967698,1741738247777,-651.26,9.842e-05,2]
[355967699,1741738247787,-780.81,9.842e-05,2]
[355967700,1741738247796,-536.14,9.842e-05,2]
[355967701,1741738247807,-500.0,9.842e-05,2]
[355967702,1741738247816,-500.0,9.842e-05,2]
[355967703,1741738247825,-500.0,9.842e-05,2]
[355967704,1741738247837,-500.0,9.842e-05,2]
[355967705,1741738247847,-500.0,9.842e-05,2]
[355967706,1741738247857,-652.15,9.842e-05,2]
[355967707,1741738247866,-507.95,9.842e-05,2]
[355967708,1741738247876,-500.0,9.842e-05,2]
[355967709,1741738247886,-500.0,9.842e-05,2]
[355967710,1741738247896,-500.0,9.842e-05,2]
[355967711,1741738247905,-500.0,9.842e-05,2]
[355967712,1741738247915,-500.0,9.842e-05,2]
[355967713,1741738247926,-500.0,9.842e-05,2]
[355967714,1741738247936,-500.0,9.842e-05,2]
[355967715,1741738247945,-1584.1,9.842e-05,2]
[355967716,1741738247956,-500.0,9.842e-05,2]
[355967717,1741738247969,-500.0,9.842e-05,2]
[355967718,1741738247979,-500.0,9.842e-05,2]
[355967719,1741738247988,-761.81,9.842e-05,2]
[355967720,1741738247999,-690.0,9.842e-05,2]
[355967721,1741738248010,-500.0,9.842e-05,2]
[355967722,1741738248019,-500.0,9.842e-05,2]
[355967723,1741738248029,-500.0,9.842e-05,2]
[355967724,1741738248041,-1006.01,9.842e-05,2]
[355967725,1741738248051,-500.0,9.842e-05,2]
[355967726,1741738248061,-500.0,9.842e-05,2]
[355967727,1741738248070,-500.0,9.842e-05,2]
[355967728,1741738248082,-500.0,9.842e-05,2]
[355967729,1741738248092,-1946.98,9.842e-05,2]
[355967730,1741738248101,-1053.75,9.842e-05,2]
[355967731,1741738248111,-596.14,9.842e-05,2]
[355967732,1741738248120,-778.96,9.842e-05,2]
[355967733,1741738248130,-500.0,9.842e-05,2]
[355967734,1741738248140,-1493.74,9.842e-05,2]
[355967735,1741738248149,-500.0,9.842e-05,2]
[355967736,1741738248159,-500.0,9.842e-05,2]
[355967737,1741738248168,-500.0,9.842e-05,2]
[355967738,1741738248178,-500.0,9.842e-05,2]
[355967739,1741738248187,-500.0,9.843e-05,2]
[355967740,1741738248197,-500.0,9.843e-05,2]
[355967741,1741738248207,-500.0,9.843e-05,2]
[355967742,1741738248216,-690.04,9.843e-05,2]
[355967743,1741738248226,-500.0,9.843e-05,2]
[355967744,1741738248235,-500.0,9.843e-05,2]
[355967745,1741738248246,-502.28,9.843e-05,2]
[355967746,1741738248255,-500.0,9.843e-05,2]
[355967747,1741738248265,-500.0,9.843e-05,2]
[355967748,1741738248274,-500.0,9.843e-05,2]
[355967749,1741738248283,-500.0,9.843e-05,2]
[355967750,1741738248293,-500.0,9.843e-05,2]
[355967751,1741738248302,-272.38388014,9.843e-05,2]
[355967752,1741738248312,-500.0,9.843e-05,2]
[355967753,1741738248321,-500.0,9.843e-05,2]
[355967754,1741738248331,-500.0,9.843e-05,2]
[355967755,1741738248341,-500.0,9.843e-05,2]
[355967756,1741738248350,-500.0,9.843e-05,2]
[355967757,1741738248360,-511.37,9.843e-05,2]
[355967758,1741738248370,-500.0,9.843e-05,2]
[355967759,1741738248380,-518.28,9.843e-05,2]
[355967760,1741738248390,-500.0,9.843e-05,2]